Cogmind - Beta 15 @@@ ROGUE MODE // 2025.08.30 @ 15:22:47 Player: Possibly A Hive Mind Result: Destroyed by X-62 Marksman with Pulse Rifle Performance ------------- Evolutions (2) 1000 Regions Visited (3) 600 Robots Destroyed (88) 440 Value Destroyed (2425) 2425 Prototype IDs (12) 240 Alien Tech Used (0) 0 Bonus (23) 23 TOTAL SCORE: 4728 Bonus ------- High Alert Combat Kills 23 Cogmind --------- Core Integrity 0/550 Matter 296/300 Energy 160/160 System Corruption 1% Temperature Warning (327) Movement Walking (183) Ox1 Location -8/Materials Parts ------- > --- POWER (2) -------- Light Nuclear Core > --- PROPULSION (4) --- Aluminum Leg VSS Leg VSS Leg > --- UTILITY (3) ------ High-capacity Storage Unit Improved Targeting Computer Improved Light Armor Plating > --- WEAPON (2) ------- Spread Laser Advanced Beam Cannon > --- INVENTORY (20) --- Improved Heat Sink Improved Sensor Array Improved Signal Interpreter Particle Charger Reaction Control System Hardened Medium Armor Plating Hacking Suite System Shield Recalibrator Particle Gun Advanced Beam Cannon Heavy Particle Cannon Minigun Improved Datajack Heavy Flail Peak State ------------ > --- POWER ------------ Nuclear Core Nuclear Core > --- PROPULSION ------- VSS Leg VSS Leg VSS Leg VSS Leg > --- UTILITY ---------- Improved Heat Sink High-capacity Storage Unit Improved Targeting Computer > --- WEAPON ----------- Advanced Beam Cannon Heavy Particle Cannon > --- INVENTORY -------- Light Nuclear Core Aluminum Leg Aluminum Leg Improved Heat Sink Improved Sensor Array Improved Signal Interpreter Improved Targeting Computer Particle Charger Reaction Control System Hardened Medium Armor Plating Improved Light Armor Plating Recalibrator Advanced Beam Cannon Advanced Beam Cannon Heavy Particle Cannon High-powered Shotgun Advanced EMP Blaster Heavy Mace [Rating: 35] Favorites ----------- Power Nuclear Core Engine Improved Ion Engine Power Core Nuclear Core Propulsion VSS Leg Treads Light Treads Leg VSS Leg Wheel Compact Wheel Flight Unit VTOL Module Utility Improved Targeting Computer Device Improved Heat Sink Storage Small Storage Unit Processor Improved Targeting Computer Protection Light Armor Plating Weapon Advanced Beam Cannon Energy Gun Particle Gun Energy Cannon Advanced Beam Cannon Ballistic Gun Shotgun Impact Weapon Heavy Mace Build | -11 -10 -9 -8 ------- Run | Yrd Mat Mat Mat Slots Evolved 4 | . . 2 2 Power 1 | . . . 1 Propulsion 2 | . . 2 . Utility 1 | . . . 1 Weapon . | . . . . Parts Attached 78 | 4 9 39 26 Power 13 | . 1 5 7 Engine 8 | . 1 4 3 Core 5 | . . 1 4 Reactor . | . . . . Propulsion 30 | 2 3 20 5 Treads 11 | . . 11 . Leg 12 | . . 7 5 Wheel 2 | 2 . . . Hover . | . . . . Flight 5 | . 3 2 . Utility 18 | 1 3 7 7 Device 4 | . 1 . 3 Storage 4 | 1 1 1 1 Processor 3 | . . 2 1 Hackware . | . . . . Protection 7 | . 1 4 2 Artifact . | . . . . Weapon 17 | 1 2 7 7 Energy Gun 7 | 1 2 2 2 Energy Cannon 6 | . . 3 3 Ballistic Gun 1 | . . 1 . Ballistic Cannon . | . . . . Launcher . | . . . . Special Weapon . | . . . . Impact Weapon 3 | . . 1 2 Slashing Weapon . | . . . . Piercing Weapon . | . . . . Special Melee Weapon . | . . . . Unidentified Prototypes . | . . . . Parts Lost 27 | . 2 15 10 Power 3 | . . 1 2 Propulsion 12 | . 1 7 4 Utility 5 | . . 3 2 Weapon 7 | . 1 4 2 Highest Loss Streak 5 | . 1 5 5 To Critical Strikes . | . . . . Average Backups 10 | 3 7 6 16 Power 1 | 1 1 . 1 Propulsion 1 | 1 2 . . Utility 5 | . . 3 9 Weapon 3 | 1 3 1 4 Tool/Special . | . . . . Unused Backups 51 | . 11 12 28 Power 3 | . 1 . 2 Propulsion 8 | . 5 . 3 Utility 23 | . . 8 15 Weapon 16 | . 5 4 7 Tool/Special 1 | . . . 1 Average Slot Usage (%) 97 | . 95 97 97 Engine 7 | . 13 8 4 Core 6 | . . 2 12 Treads 15 | . . 32 . Leg 18 | . . 6 35 Flight 3 | . 20 3 . Device 4 | . 10 1 6 Storage 8 | . 14 7 9 Processor 6 | . . 5 9 Protection 4 | . . 6 1 Energy Gun 7 | . 28 9 . Energy Cannon 13 | . . 12 16 Peak Build Rating 35 | 4 11 26 35 Average Rating 22 | 3 9 15 32 On Entrance 10 | . 4 10 26 Naked Turns . | . . . . Heaviest Build 65 | 7 14 35 65 Greatest Support 86 | 26 32 86 48 Greatest Overweight (x) 2 | . 1 1 2 Average Overweight (x) . | . . . . Largest Inventory Capacity 20 | 8 15 15 20 Average Capacity 11 | 6 8 7 17 Most Carried 20 | 8 8 15 20 Average Carried 10 | 4 7 6 16 Final Capacity 20 | 8 8 15 20 Final Carried 15 | 8 6 15 15 Class Distribution -------------------- 61% | Mutant 30% | Scavenger-Mutant 7% | Sprinter Dominant Class ---------------- Sprinter | -10/Materials Scavenger-Mutant | -9/Materials Mutant | -8/Materials Resources | -11 -10 -9 -8 ----------- Run | Yrd Mat Mat Mat Matter Collected 1403 | 240 95 506 562 Remotely . | . . . . Salvage Created 3084 | . 250 1458 1376 Parts 194 | . 26 87 81 Haulers Intercepted 2 | . . . 2 Recyclers Shooed 1 | . . 1 . Parts Field Recycled . | . . . . Retrieved Matter . | . . . . Parts Self-Destructed . | . . . . Prevented . | . . . . Kills | -11 -10 -9 -8 ------- Run | Yrd Mat Mat Mat Combat Hostiles Destroyed 68 | . 10 36 22 Guns 21 | . 10 8 3 Cannons 46 | . . 27 19 Classes Destroyed 11 | . 5 3 3 Worker 2 | . . 1 1 Builder 2 | . 1 . 1 Hauler 2 | . . . 2 Recycler 3 | . . . 3 Operator 3 | . 1 1 1 Watcher 8 | . 1 4 3 Swarmer 24 | . 8 10 6 Grunt 25 | . 2 16 7 Brawler 1 | . . 1 . Sentry 13 | . . 9 4 Specialist 5 | . . . 5 Best Kill Streak 6 | . 4 4 6 Combat Bots Only 5 | . 3 4 5 Max Kills in Single Turn 2 | . 2 1 1 Gunslinging 1 | . 1 . . Exploded . | . . . . Melee . | . . . . Uniques/NPCs Destroyed . | . . . . Combat | -11 -10 -9 -8 -------- Run | Yrd Mat Mat Mat Hostile Shots Fired 490 | . 62 227 201 Missed 129 | . 31 44 54 Hits 361 | . 31 183 147 Projectile 361 | . 31 183 147 Critical Strikes 9 | . . 3 6 Damage Taken 4889 | . 255 2203 2431 Core 895 | . 40 304 551 Absorbed by Shields . | . . . . Regen/Repaired (Parts) 414 | . . . 414 Core Remaining (%) 69 | 100 84 24 . Volleys Fired 239 | 1 36 99 103 Largest 2 | 1 2 2 2 Hottest 143 | 50 90 136 143 Shots Fired 441 | 1 72 188 180 Gun 170 | 1 72 86 11 Cannon 271 | . . 102 169 Launcher . | . . . . Special . | . . . . Kinetic . | . . . . Thermal 418 | 1 49 188 180 Explosive . | . . . . Electromagnetic 23 | . 23 . . Robot Hit Streak 13 | 1 4 13 10 Robot Miss Streak 8 | . 8 3 5 Penetration Max . | . . . . Secondary Targets 1 | . 1 . . Max Gunslinging Chain 1 | . 1 . . Shots Hit Robots 247 | 1 27 118 101 Core Hits 113 | . 16 45 52 Critical Kills . | . . . . Critical Parts Destroyed 1 | . . 1 . Critical Strikes 2 | . . 2 . Burn 1 | . . 1 . Smash 1 | . . 1 . Melee Attacks 11 | . . 4 7 Impact 11 | . . 4 7 Slashing . | . . . . Piercing . | . . . . Sneak Attacks 1 | . . 1 . Combat Hostiles . | . . . . Follow-up Attacks . | . . . . Damage Inflicted 4632 | 13 350 2137 2132 Guns 1232 | 13 350 720 149 Cannons 3258 | . . 1275 1983 Explosions . | . . . . Melee 142 | . . 142 . Ramming . | . . . . Kinetic . | . . . . Thermal 4370 | 13 230 1995 2132 Explosive . | . . . . Electromagnetic 120 | . 120 . . Impact 142 | . . 142 . Slashing . | . . . . Piercing . | . . . . Highest Corruption 1 | . . . 1 Average Corruption 1 | . . . 1 Corruption Purged . | . . . . Corruption Blocked . | . . . . Effects 15 | . . . 15 Message Errors 5 | . . . 5 Matter Fused 5 | . . . 5 Heat Flow Errors 1 | . . . 1 Energy Discharges 1 | . . . 1 Parts Rejected 2 | . . . 2 Data Loss (minor) 1 | . . . 1 Overload Shots . | . . . . Overflow Damage 98 | . . 91 7 Projectiles 19 | . . 12 7 Explosions . | . . . . Melee 79 | . . 79 . Knockbacks . | . . . . Impact . | . . . . Kinetic . | . . . . Secondary . | . . . . Self-Inflicted Damage . | . . . . Shots . | . . . . Rammed . | . . . . Targets Rammed . | . . . . Kicked . | . . . . Crushed . | . . . . Highest Temperature 623 | . 349 623 542 Average Temperature 182 | . 125 186 194 Received Heat Transfer 1443 | . 6 780 657 Effects 59 | . . 35 24 Shutdowns 14 | . . 5 9 Energy Bleed 4 | . . 2 2 Interference 13 | . . 6 7 Matter Decay 6 | . . 3 3 Short Circuit 3 | . . 2 1 Damage (minor) 6 | . . 4 2 Damage (major) 13 | . . 13 . Siege Activations . | . . . . Martial Activations . | . . . . Shielding Activations . | . . . . Robots Disrupted . | . . . . Combat Hostiles . | . . . . Robots Corrupted 1 | . . 1 . Combat Hostiles 1 | . . 1 . Parts Fried 4 | . . 4 . Impact Corruptions 2 | . . 2 . Robots Melted . | . . . . Combat Hostiles . | . . . . Parts Melted 7 | . . 5 2 Heat Transferred 8522 | 37 643 4137 3705 Parts Sabotaged . | . . . . Parts Stolen . | . . . . Parts Stripped . | . . . . Power Chain Reactions . | . . . . Alert | -11 -10 -9 -8 ------- Run | Yrd Mat Mat Mat Maximum Alert Level 2 | . . 2 1 Low Security (%) 57 | 100 100 73 31 Level 1 35 | . . 12 68 Level 2 6 | . . 14 . Level 3 . | . . . . Level 4 . | . . . . Level 5 . | . . . . High Security . | . . . . Max Security . | . . . . Peak Influence 471 | . 147 471 354 Initial 196 | . . 49 196 Average 175 | . 66 139 240 Influence Increases 2223 | . 307 1100 816 Destroy 0b10 Robot/C 1360 | . 200 720 440 Destroy 0b10 Robot/NC 100 | . 15 30 55 Destroy Leader 350 | . 32 188 130 Successful Hack 124 | . 45 52 27 Disable Machine 105 | . . 15 90 Destroy Structure 19 | . . 5 14 Partial Spotted 30 | . . 15 15 Lose Combat Pursuer 135 | . 15 75 45 Influence Decreases 1935 | . 190 752 993 Entered New Map 337 | . . 68 269 Time Decay 1328 | . 170 534 624 Lost Part 270 | . 20 150 100 Squads Dispatched 13 | . . 4 9 Investigation 1 | . . 1 . Extermination . | . . . . Reinforcement 9 | . . 3 6 Assault . | . . . . Garrison 3 | . . . 3 Intercept . | . . . . Searches Triggered . | . . . . Construction Impeded . | . . . . Haulers Reinforced . | . . . . Active Scanning Responses . | . . . . Cargo Convoy Interrupts . | . . . . Stealth | -11 -10 -9 -8 --------- Run | Yrd Mat Mat Mat Distress Signals 9 | . 2 2 5 Communications Jammed . | . . . . Distress Signals . | . . . . Times Spotted 106 | . 16 51 39 Peak Tracking Total 7 | . 4 7 4 Tactical Retreats 7 | . 1 3 3 Traps | -11 -10 -9 -8 ------- Run | Yrd Mat Mat Mat Traps Triggered 4 | . . 3 1 Indirectly . | . . . . Trap Hack Attempts . | . . . . Triggered . | . . . . Disarmed 5 | . . . 5 Reprogrammed 1 | . . 1 . Reused . | . . . . Traps Extracted . | . . . . Installed . | . . . . Triggered . | . . . . Machines | -11 -10 -9 -8 ---------- Run | Yrd Mat Mat Mat Machines Disabled 7 | . . 1 6 Max in Single Turn 1 | . . 1 1 Machines Repaired . | . . . . Machines Dismantled . | . . . . Machines Sabotaged . | . . . . Overloaded Fab Kills . | . . . . Hacking | -11 -10 -9 -8 --------- Run | Yrd Mat Mat Mat Machines Accessed 27 | . 5 13 9 Terminals 16 | . 4 8 4 Fabricators . | . . . . Repair Stations 3 | . . 1 2 Recycling Units 4 | . 1 2 1 Scanalyzers 3 | . . 2 1 Garrison Access 1 | . . . 1 Total Hacks 88 | . 15 40 33 Successful 50 | . 6 22 22 Failed 38 | . 9 18 11 Catastrophic 8 | . 4 3 1 Database Lockouts . | . . . . Manual . | . . . . Terminals 49 | . 14 24 11 Fabricators . | . . . . Repair Stations 17 | . . 3 14 Recycling Units 11 | . 1 6 4 Scanalyzers 9 | . . 7 2 Garrison Access 2 | . . . 2 Terminal Hacks 23 | . 6 10 7 Record 2 | . . . 2 Prototype ID Bank 7 | . 3 4 . Emergency Access Points 1 | . . 1 . Repair Station Index 1 | . . . 1 Locate Traps 3 | . . 2 1 Disarm Traps 1 | . . . 1 Reprogram Traps 1 | . . 1 . Investigation Status 1 | . 1 . . Registered Components 2 | . 1 1 . Zone Layout 4 | . 1 1 2 Fabricator Hacks . | . . . . Repair Station Hacks 13 | . . 1 12 Scan Component 7 | . . 1 6 Repair 6 | . . . 6 Recycling Unit Hacks 6 | . . 5 1 Report Inventory 2 | . . 1 1 Retrieve Matter 2 | . . 2 . Retrieve Components 2 | . . 2 . Scanalyzer 7 | . . 6 1 Insert Component 4 | . . 3 1 Analyze 3 | . . 3 . Garrison Access Hacks 1 | . . . 1 Unlock Access 1 | . . . 1 Unauthorized Hacks . | . . . . Terminals . | . . . . Fabricators . | . . . . Repair Stations . | . . . . Recycling Units . | . . . . Scanalyzers . | . . . . Garrison Access . | . . . . Data Cores Recovered 1 | . 1 . . Used . | . . . . Hacking Detections 25 | . 5 12 8 Full Trace Events 1 | . . . 1 Feedback Events 1 | . . . 1 Corruption 1 | . . . 1 Feedback Blocked . | . . . . Robot Schematics Acquired . | . . . . Robots Built . | . . . . Authchips . | . . . . Time . | . . . . Total Robot Build Rating . | . . . . Part Schematics Acquired 2 | . . 2 . Parts Built . | . . . . Authchips . | . . . . Time . | . . . . Total Part Build Rating . | . . . . Parts Repaired 6 | . . . 6 Time 242 | . . . 242 Parts Recycled . | . . . . Recycled Matter . | . . . . Retrieved Matter 16 | . . 16 . Retrieved Components 20 | . . 20 . Parts Scanalyzed 4 | . . 3 1 Part Schematics Acquired 2 | . . 2 . Parts Damaged 1 | . . 1 . Bothacking | -11 -10 -9 -8 ------------ Run | Yrd Mat Mat Mat Used RIF Installer . | . . . . Robots Hacked . | . . . . Non-combat . | . . . . Combat . | . . . . Robot Hacks Applied . | . . . . Relay Couplers Released . | . . . . Fabnet Peak Effective % . | . . . . Robots Rewired . | . . . . Allies Hacked . | . . . . Hacks Repelled . | . . . . Allies | -11 -10 -9 -8 -------- Run | Yrd Mat Mat Mat Total Allies . | . . . . Largest Group . | . . . . Highest-Rated Group . | . . . . Highest-Rated Ally . | . . . . Total Orders . | . . . . Ally Attacks . | . . . . Total Damage . | . . . . Kills . | . . . . Allies Corrupted . | . . . . Allies Melted . | . . . . Intel | -11 -10 -9 -8 ------- Run | Yrd Mat Mat Mat Active Infowar (turns) . | . . . . Robot Analysis Total . | . . . . Derelict Logs Recovered . | . . . . Drone Launches . | . . . . Drone Recoveries . | . . . . Exploration | -11 -10 -9 -8 ------------- Run | Yrd Mat Mat Mat Turns Passed 4900 | 59 384 2337 2120 Spaces Moved 3107 | 48 570 1393 1096 Core 5 | 5 . . . Treads 953 | . . 953 . Legs 1329 | . . 233 1096 Wheels 125 | 43 82 . . Hover . | . . . . Flight 695 | . 488 207 . Fastest Speed 26 | 50 32 26 90 Average Speed 124 | 85 40 136 154 Slowest Speed 270 | 90 120 190 270 Overloaded Moves . | . . . . Propulsion Burnouts . | . . . . Robots Hopped 4 | . 3 1 . Potential Cave-ins . | . . . . Cave-ins Triggered . | . . . . Exploration Rate (%) 54 | 4 67 79 67 Regions Visited 3 Branch Regions . Pre-discovered Areas . | . . . . Known Exits Taken . | . . . . Unknown Exits Taken 3 | 1 1 1 . Scrap Searched . | . . . . Spaces Dug . | . . . . Terrain Destroyed 5 | . . . 5 Melee . | . . . . Projectile 5 | . . . 5 AOE . | . . . . Terrain Rammed . | . . . . Walls Destroyed . | . . . . Machines Disabled . | . . . . Actions | -11 -10 -9 -8 --------- Run | Yrd Mat Mat Mat Total 3716 | 64 654 1651 1347 Wait 2 | . . . 2 Move 3096 | 47 563 1390 1096 Hop 4 | . 3 1 . Pick Up 165 | 12 22 70 61 Fast Attach . | . . . . Attach 56 | 4 5 27 20 Detach . | . . . . Swap 41 | . 6 17 18 Drop 102 | . 19 43 40 Fire 239 | 1 36 99 103 Melee 11 | . . 4 7 Ram . | . . . . Kick . | . . . . Crush . | . . . . Escape Stasis . | . . . . Rewire . | . . . . Trap . | . . . . Miscellaneous . | . . . . Route ------- -11/Scrapyard -10/Materials (discovered 4 exits: *Mat x3 / [*Min]) -9/Materials (discovered 3 exits: *Mat x3) -8/Materials (discovered 2 exits: [*Fac] / Gar) History --------- Turn | Location | Event 12 | -11/Scrapyard | Discovered new exit (range 15) 60 | -11/Scrapyard | Entered Materials 226 | -10/Materials | Discovered new exit (range 7) 333 | -10/Materials | Discovered new exit (range 10) 353 | -10/Materials | Discovered new exit (range 16) 405 | -10/Materials | Discovered new exit (range 13) 444 | -10/Materials | Entered another Materials area 444 | -9/Materials | Evolved 2 slots: Propulsion x2 482 | -9/Materials | Build established: Sprinter 564 | -9/Materials | Lost 3 parts (2n1w) 865 | -9/Materials | Build established: Scavenger-Mutant 1184 | -9/Materials | Discovered new exit (range 7) 1563 | -9/Materials | Build established: Mutant 1955 | -9/Materials | Core integrity fell below 50% 1979 | -9/Materials | Lost 5 parts (1p2n1u1w) 2072 | -9/Materials | Discovered new exit (range 3) 2287 | -9/Materials | Build established: Scavenger-Mutant 2620 | -9/Materials | Discovered new exit (range 11) 2781 | -9/Materials | Entered another Materials area 2781 | -8/Materials | Evolved 2 slots: Power x1, Utility x1 2845 | -8/Materials | Repaired Adv. Beam Cannon? 2918 | -8/Materials | Build established: Mutant 2924 | -8/Materials | Repaired Lgt. Armor Plating 3000 | -8/Materials | Repaired Particle Charger 3037 | -8/Materials | Identified exit to Garrison 3425 | -8/Materials | Garrison activated, responded to threat 4217 | -8/Materials | Discovered new exit (range 9) 4325 | -8/Materials | Repaired VSS Leg 4366 | -8/Materials | Repaired VSS Leg 4424 | -8/Materials | Repaired Adv. Beam Cannon 4765 | -8/Materials | Core integrity fell below 50% 4799 | -8/Materials | Core integrity fell below 20% 4842 | -8/Materials | Lost 5 parts (1p2n1u1w) 4901 | -8/Materials | Destroyed by X-62 Marksman with Pulse Rifle Last Messages --------------- W-25 Informer destroyed. Acquired 20 matter. K-01 Serf collects debris. Integration Channel disabled. K-01 Serf collects debris. Slug penetrates Integration Channel. Penetrated by Slug. K-01 Serf collects debris. Core Analyzer melted. X-62 Marksman destroyed. Penetrated by Slug. Terminal disabled. K-01 Serf collects debris. Aluminum Leg destroyed. Acquired 1 matter. K-01 Serf collects debris. Penetrated by Slug. Nuclear Core destroyed. K-01 Serf collects debris. Penetrated by Slug. Map ----- +----------------------------------------------------+ | | | | | | | | | ?????????????????????#####?????????????########### | | ?????????????????????#]!! ?######??????#% # | | ?????????????????????#]! ##!!!!##?????# # | | ?????????????????????#!! #! !#?????# # | | ?????????????????????# # #?????# # | | ??????????????######## ! # ############+#### | | ??????????????# # + | | ??????????????# # ] # ############## | | ####??????????# # # #????????????# | | # #??????????# #! [ + #?#####??????# | | # #??????????# ######### #?# #??????# | | + +??????????# #???????# #?# ######## | | # #??????????# #???????# #?# # # | | # ############ #??###### #?# + """ # | | """ # ####" "## ### # R" # | | "T" # + # """ / | | + # # % # #### | | # # """ "" # % # # | | # # # """ """" #####+## # | | # ######## ! """" #???# # "" | | # = * ![ #???# %# "" | | # !%!@ k%! k #???# # "" | | # ####+########+#########x####### ##??# # | | # #??? ???????????????# % # % ##### ##+# | | # #??? ??????????????# [ # % | | # #???? ?????????????# u !# ]######### # | | / #???? ! ?????????????# !%# ## ==%*# # | | # + | ????????????# +* ## / # | | #### """ #???????????# # ## * # # | | #??????""? ????????????# # ## ! # % # | | #???????????????????????# #!% ## + # | | #???????????????????????# # | ## # # | | ################????????########## #####+### % # | | ## ?????????????????# % | | ?# ?????????????????# #####% [ | | ## ???????????????????# #???# [ | | ^ #?????????????????????# ????# %[% | | #?????????????????????# ????# | | #????????????????????? ????# "" | | ###+#????????????????????? ????# "" | | #?????????????????????????? ????# "" | | ####+###?????????????????????????????????# | | #???????????????????????????????????# | | """ #???????????????????????????????????# | | """ #???????????????????????????????????# | | """ #???????????????????????????????????# !! | +----------------------------------------------------+ Best States ------------- Heat Dissipation 45 Energy Generation 23 Energy Capacity 415 Matter Stores 300 Matter Capacity 300 Sight Range 16 Terrain Scan Density 10 Additional Mass Support 6 Armor Coverage 225 Propulsion Shielding 33 Evasion (%) 64 Targeting Accuracy 6 Recoil Reduction 4 Item Schematics ----------------- Adv. Targeting Computer | -9/Materials | Scanalyzed Particle Charger | -9/Materials | Scanalyzed Robot Schematics ------------------ None Fabricated ------------ Nothing Repaired ---------- Adv. Beam Cannon | 1% | -8/Materials Lgt. Armor Plating | 63% | -8/Materials Particle Charger | 68% | -8/Materials VSS Leg | 8% | -8/Materials VSS Leg | 13% | -8/Materials Adv. Beam Cannon | 34% | -8/Materials Alien Tech Used ----------------- None Achievements -------------- None Challenges ------------ None Game ------ Seed SpacefoldAdvancedCompanion Manual? 0 Play Time 01:28:25 Cumulative 6.0 hours Start 2025.08.30 @ 11:02:00 End 2025.08.30 @ 15:22:47 Sessions 1 Manual Loads 0 Difficulty Rogue Special Mode None Game No. 7 Rogue 7 Adventurer 0 Explorer 0 Win Type - Total 0 Types 0/0/0/0/0/0/0/0/0/0 Lore% 2 Gallery% 9 Achievement% 7 Wizard Run 0 Options --------- Layout 1 ASCII 0 Keyboard 0 Movement Mouse Keybinds 0 Fullscreen 1 Font 24/Smallcaps Map View 50x35 Zoom Use 0% Tactical HUD 0 Map Filters NONE Filters NONE Steam 1 RUN: fbd46d78-4cbf-46ab-acd1-69230ee0053c